[Event "Titled Tuesday Blitz April 12 Early 2022"]
[White "Gabdrakhmanov, Azat"]
[Black "Stribuk, Artiom"]
[WhiteFideId "34189197"]
[BlackFideId "13515659"]
[WhiteElo "2279"]
[BlackElo "2259"]
[Result "1/2-1/2"]
[Round "05"]
[TimeControl "180+1"]
[Date "2022.04.12"]
[WhiteClock "0:00:28"]
[BlackClock "0:00:10"]

1. e4 {[%clk 0:03:00]}  c5 {[%clk 0:02:57]} 2. Nf3 {[%clk 0:03:01]}  Nc6 {[%clk 0:02:58]} 3. d4 {[%clk 0:03:01]}  cxd4 {[%clk 0:02:59]} 4. Nxd4 {[%clk 0:03:01]}  Nf6 {[%clk 0:02:59]} 5. Nc3 {[%clk 0:03:02]}  e5 {[%clk 0:02:59]} 6. Ndb5 {[%clk 0:03:02]}  d6 {[%clk 0:03:00]} 7. Bg5 {[%clk 0:03:02]}  a6 {[%clk 0:03:01]} 8. Na3 {[%clk 0:03:02]}  b5 {[%clk 0:03:01]} 9. Bxf6 {[%clk 0:03:03]}  gxf6 {[%clk 0:03:02]} 10. Nd5 {[%clk 0:03:04]}  Bg7 {[%clk 0:03:02]} 11. c3 {[%clk 0:03:03]}  f5 {[%clk 0:03:02]} 12. exf5 {[%clk 0:03:02]}  Bxf5 {[%clk 0:03:03]} 13. Nc2 {[%clk 0:03:02]}  O-O {[%clk 0:03:01]} 14. Nce3 {[%clk 0:03:03]}  Be6 {[%clk 0:03:02]} 15. g4 {[%clk 0:03:03]}  b4 {[%clk 0:02:55]} 16. Bd3 {[%clk 0:02:58]}  bxc3 {[%clk 0:02:52]} 17. bxc3 {[%clk 0:02:59]}  Qh4 {[%clk 0:02:14]} 18. Qf3 {[%clk 0:02:44]}  e4 {[%clk 0:01:57]} 19. Bxe4 {[%clk 0:02:06]}  Rae8 {[%clk 0:01:29]} 20. O-O {[%clk 0:01:48]}  Ne5 {[%clk 0:01:24]} 21. Qg3 {[%clk 0:01:46]}  Qxg3+ {[%clk 0:01:19]} 22. hxg3 {[%clk 0:01:47]}  Nxg4 {[%clk 0:01:20]} 23. Nxg4 {[%clk 0:01:41]}  Bxg4 {[%clk 0:01:21]} 24. Rfe1 {[%clk 0:01:41]}  Re6 {[%clk 0:00:50]} 25. Nf4 {[%clk 0:01:17]}  Bxc3 {[%clk 0:00:42]} 26. Nxe6 {[%clk 0:01:08]}  Bxe6 {[%clk 0:00:40]} 27. Rec1 {[%clk 0:00:56]}  Bxa1 {[%clk 0:00:40]} 28. Rxa1 {[%clk 0:00:57]}  Rb8 {[%clk 0:00:36]} 29. a4 {[%clk 0:00:54]}  Rb4 {[%clk 0:00:35]} 30. Bc6 {[%clk 0:00:53]}  a5 {[%clk 0:00:31]} 31. Rd1 {[%clk 0:00:41]}  d5 {[%clk 0:00:29]} 32. Bxd5 {[%clk 0:00:36]}  Bxd5 {[%clk 0:00:18]} 33. Rxd5 {[%clk 0:00:37]}  Rxa4 {[%clk 0:00:19]} 34. Rd8+ {[%clk 0:00:37]}  Kg7 {[%clk 0:00:19]} 35. Ra8 {[%clk 0:00:38]}  Ra2 {[%clk 0:00:17]} 36. Kg2 {[%clk 0:00:38]}  a4 {[%clk 0:00:17]} 37. Ra6 {[%clk 0:00:37]}  a3 {[%clk 0:00:17]} 38. Kf3 {[%clk 0:00:38]}  Ra1 {[%clk 0:00:16]} 39. Kg2 {[%clk 0:00:38]}  Kf8 {[%clk 0:00:15]} 40. Ra7 {[%clk 0:00:37]}  Kg8 {[%clk 0:00:15]} 41. Kh2 {[%clk 0:00:36]}  Kg7 {[%clk 0:00:16]} 42. Kg2 {[%clk 0:00:36]}  Kf6 {[%clk 0:00:16]} 43. Ra6+ {[%clk 0:00:34]}  Ke5 {[%clk 0:00:12]} 44. Ra7 {[%clk 0:00:34]}  Ke6 {[%clk 0:00:13]} 45. Ra6+ {[%clk 0:00:34]}  Ke7 {[%clk 0:00:12]} 46. Ra7+ {[%clk 0:00:35]}  Kf6 {[%clk 0:00:13]} 47. Ra6+ {[%clk 0:00:35]}  Kg7 {[%clk 0:00:14]} 48. Ra7 {[%clk 0:00:36]}  h5 {[%clk 0:00:14]} 49. Ra5 {[%clk 0:00:33]}  Kg6 {[%clk 0:00:13]} 50. Kh2 {[%clk 0:00:34]}  f6 {[%clk 0:00:13]} 51. Kg2 {[%clk 0:00:34]}  Kh6 {[%clk 0:00:14]} 52. Kh2 {[%clk 0:00:34]}  Ra2 {[%clk 0:00:14]} 53. Kg2 {[%clk 0:00:34]}  Kg6 {[%clk 0:00:15]} 54. Kh3 {[%clk 0:00:30]}  Ra1 {[%clk 0:00:11]} 55. Kg2 {[%clk 0:00:29]}  Ra2 {[%clk 0:00:09]} 56. Kh3 {[%clk 0:00:28]}  Kh6 {[%clk 0:00:09]} 57. Kg2 {[%clk 0:00:28]}  Kg6 {[%clk 0:00:10]} 1/2-1/2


[Site "https://www.chess.com"]

[Event "Titled Tuesday Blitz April 12 Early 2022"]
[White "Garv Gaur"]
[Black "Liyanage, Ranindu Dilshan"]
[WhiteFideId "45030839"]
[BlackFideId "9915834"]
[WhiteElo "1950"]
[BlackElo "1858"]
[Result "1-0"]
[Round "05"]
[TimeControl "180+1"]
[Date "2022.04.13"]
[WhiteClock "0:00:10"]
[BlackClock "0:00:09"]

1. d4 {[%clk 0:03:00]}  Nf6 {[%clk 0:03:00]} 2. Nf3 {[%clk 0:03:01]}  e6 {[%clk 0:03:00]} 3. c4 {[%clk 0:03:01]}  d5 {[%clk 0:03:01]} 4. g3 {[%clk 0:03:01]}  dxc4 {[%clk 0:03:00]} 5. Bg2 {[%clk 0:03:01]}  Bb4+ {[%clk 0:02:59]} 6. Bd2 {[%clk 0:03:00]}  a5 {[%clk 0:02:58]} 7. Qc2 {[%clk 0:02:59]}  Nc6 {[%clk 0:02:54]} 8. Qxc4 {[%clk 0:02:55]}  Qd5 {[%clk 0:02:55]} 9. Qxd5 {[%clk 0:02:51]}  exd5 {[%clk 0:02:56]} 10. O-O {[%clk 0:02:45]}  O-O {[%clk 0:02:55]} 11. Bf4 {[%clk 0:02:43]}  Bg4 {[%clk 0:02:53]} 12. Nc3 {[%clk 0:02:23]}  Bxf3 {[%clk 0:02:49]} 13. Bxf3 {[%clk 0:02:14]}  Nxd4 {[%clk 0:02:48]} 14. Bxc7 {[%clk 0:02:08]}  Rfe8 {[%clk 0:02:32]} 15. Kg2 {[%clk 0:01:37]}  Rac8 {[%clk 0:02:26]} 16. Bb6 {[%clk 0:01:36]}  Bxc3 {[%clk 0:02:03]} 17. bxc3 {[%clk 0:01:35]}  Nxe2 {[%clk 0:02:04]} 18. Bxa5 {[%clk 0:01:25]}  Nxc3 {[%clk 0:02:00]} 19. Bb6 {[%clk 0:01:01]}  Ra8 {[%clk 0:01:34]} 20. a3 {[%clk 0:00:54]}  Ra4 {[%clk 0:01:32]} 21. Rfc1 {[%clk 0:00:52]}  Nb5 {[%clk 0:01:29]} 22. Rc5 {[%clk 0:00:45]}  Nxa3 {[%clk 0:01:22]} 23. Bxd5 {[%clk 0:00:44]}  Nxd5 {[%clk 0:01:17]} 24. Rxd5 {[%clk 0:00:45]}  Ra6 {[%clk 0:01:17]} 25. Re1 {[%clk 0:00:25]}  Rc8 {[%clk 0:00:45]} 26. Rc1 {[%clk 0:00:21]}  Rca8 {[%clk 0:00:40]} 27. Rcd1 {[%clk 0:00:15]}  h6 {[%clk 0:00:35]} 28. Rd8+ {[%clk 0:00:14]}  Rxd8 {[%clk 0:00:35]} 29. Rxd8+ {[%clk 0:00:14]}  Kh7 {[%clk 0:00:35]} 30. Bc5 {[%clk 0:00:14]}  Kg6 {[%clk 0:00:23]} 31. Rb8 {[%clk 0:00:13]}  Nc4 {[%clk 0:00:15]} 32. Rxb7 {[%clk 0:00:12]}  Rc6 {[%clk 0:00:16]} 33. Bd4 {[%clk 0:00:12]}  f6 {[%clk 0:00:16]} 34. Rb5 {[%clk 0:00:10]}  Rd6 {[%clk 0:00:15]} 35. Bc3 {[%clk 0:00:10]}  Rd3 {[%clk 0:00:15]} 36. Bb4 {[%clk 0:00:10]}  Rb3 {[%clk 0:00:15]} 37. Rb8 {[%clk 0:00:09]}  Rb2 {[%clk 0:00:15]} 38. Bd6 {[%clk 0:00:08]}  Rd2 {[%clk 0:00:15]} 39. Bf4 {[%clk 0:00:08]}  Rc2 {[%clk 0:00:15]} 40. Rb7 {[%clk 0:00:06]}  f5 {[%clk 0:00:11]} 41. Rc7 {[%clk 0:00:06]}  Kf6 {[%clk 0:00:10]} 42. h4 {[%clk 0:00:05]}  g5 {[%clk 0:00:10]} 43. hxg5+ {[%clk 0:00:03]}  hxg5 {[%clk 0:00:11]} 44. Rc6+ {[%clk 0:00:03]}  Kf7 {[%clk 0:00:11]} 45. Rc7+ {[%clk 0:00:02]}  Kg6 {[%clk 0:00:09]} 46. Bd6 {[%clk 0:00:02]}  g4 {[%clk 0:00:04]} 47. Bf4 {[%clk 0:00:02]}  Kf6 {[%clk 0:00:05]} 48. Rc6+ {[%clk 0:00:02]}  Ke7 {[%clk 0:00:05]} 49. Rc7+ {[%clk 0:00:03]}  Ke6 {[%clk 0:00:06]} 50. Rc6+ {[%clk 0:00:03]}  Kd5 {[%clk 0:00:06]} 51. Rf6 {[%clk 0:00:04]}  Ke4 {[%clk 0:00:07]} 52. Re6+ {[%clk 0:00:04]}  Kd3 {[%clk 0:00:07]} 53. Rf6 {[%clk 0:00:05]}  Ke4 {[%clk 0:00:03]} 54. Re6+ {[%clk 0:00:05]}  Kd5 {[%clk 0:00:04]} 55. Rf6 {[%clk 0:00:05]}  Kd4 {[%clk 0:00:03]} 56. Rxf5 {[%clk 0:00:05]}  Nb2 {[%clk 0:00:04]} 57. Rg5 {[%clk 0:00:05]}  Nd3 {[%clk 0:00:03]} 58. Be3+ {[%clk 0:00:05]}  Ke4 {[%clk 0:00:02]} 59. Rxg4+ {[%clk 0:00:06]}  Kf5 {[%clk 0:00:03]} 60. Rd4 {[%clk 0:00:06]}  Ne1+ {[%clk 0:00:03]} 61. Kh3 {[%clk 0:00:04]}  Nf3 {[%clk 0:00:02]} 62. Rf4+ {[%clk 0:00:05]}  Kg5 {[%clk 0:00:02]} 63. Rxf3+ {[%clk 0:00:05]}  Kh5 {[%clk 0:00:03]} 64. Rf5+ {[%clk 0:00:06]}  Kg6 {[%clk 0:00:03]} 65. Kg4 {[%clk 0:00:07]}  Rc4+ {[%clk 0:00:03]} 66. Rf4 {[%clk 0:00:07]}  Rc2 {[%clk 0:00:04]} 67. Rd4 {[%clk 0:00:07]}  Kf6 {[%clk 0:00:05]} 68. Rd6+ {[%clk 0:00:07]}  Ke5 {[%clk 0:00:05]} 69. Ra6 {[%clk 0:00:08]}  Rc4+ {[%clk 0:00:06]} 70. f4+ {[%clk 0:00:08]}  Ke4 {[%clk 0:00:06]} 71. Re6+ {[%clk 0:00:08]}  Kd5 {[%clk 0:00:06]} 72. Re5+ {[%clk 0:00:09]}  Kd6 {[%clk 0:00:07]} 73. Kf5 {[%clk 0:00:09]}  Rc2 {[%clk 0:00:07]} 74. g4 {[%clk 0:00:10]}  Rc3 {[%clk 0:00:08]} 75. g5 {[%clk 0:00:10]}  Rc8 {[%clk 0:00:08]} 76. Ke4 {[%clk 0:00:09]}  Rf8 {[%clk 0:00:09]} 77. g6 {[%clk 0:00:09]}  Rg8 {[%clk 0:00:09]} 78. f5 {[%clk 0:00:09]}  Rf8 {[%clk 0:00:09]} 79. Re6+ {[%clk 0:00:10]}  Kd7 {[%clk 0:00:09]} 80. Bc5 {[%clk 0:00:10]}  Rd8 {[%clk 0:00:09]} 81. Rd6+ {[%clk 0:00:10]} 1-0


[Site "https://www.chess.com"]

[Event "Titled Tuesday Blitz April 12 Early 2022"]
[White "Gatterer, Florian"]
[Black "Samant Aditya S"]
[WhiteFideId "811688"]
[BlackFideId "35080580"]
[WhiteElo "2218"]
[BlackElo "1916"]
[Result "0-1"]
[Round "05"]
[TimeControl "180+1"]
[Date "2022.04.13"]
[WhiteClock "0:00:04"]
[BlackClock "0:00:39"]

1. b3 {[%clk 0:02:59]}  e5 {[%clk 0:02:59]} 2. Bb2 {[%clk 0:02:55]}  Nc6 {[%clk 0:02:59]} 3. e3 {[%clk 0:02:53]}  Nf6 {[%clk 0:03:00]} 4. Nf3 {[%clk 0:02:45]}  e4 {[%clk 0:02:59]} 5. Nd4 {[%clk 0:02:44]}  Nxd4 {[%clk 0:02:50]} 6. Bxd4 {[%clk 0:02:44]}  d5 {[%clk 0:02:50]} 7. Bb2 {[%clk 0:02:35]}  Bd6 {[%clk 0:02:48]} 8. d3 {[%clk 0:02:35]}  O-O {[%clk 0:02:42]} 9. Be2 {[%clk 0:02:35]}  c6 {[%clk 0:02:39]} 10. c4 {[%clk 0:02:34]}  Bb4+ {[%clk 0:02:20]} 11. Bc3 {[%clk 0:02:23]}  Bxc3+ {[%clk 0:02:15]} 12. Nxc3 {[%clk 0:02:23]}  Qa5 {[%clk 0:02:13]} 13. Qd2 {[%clk 0:02:11]}  exd3 {[%clk 0:02:10]} 14. Bxd3 {[%clk 0:02:08]}  dxc4 {[%clk 0:02:10]} 15. Bxc4 {[%clk 0:01:53]}  Rd8 {[%clk 0:02:08]} 16. Qb2 {[%clk 0:01:36]}  Ne4 {[%clk 0:01:49]} 17. b4 {[%clk 0:01:35]}  Qe5 {[%clk 0:01:47]} 18. Rc1 {[%clk 0:01:28]}  Bf5 {[%clk 0:01:07]} 19. O-O {[%clk 0:01:20]}  Nd2 {[%clk 0:01:06]} 20. Be2 {[%clk 0:00:59]}  Nxf1 {[%clk 0:01:04]} 21. Bxf1 {[%clk 0:00:58]}  Bd3 {[%clk 0:01:02]} 22. Na4 {[%clk 0:00:40]}  Qxb2 {[%clk 0:00:58]} 23. Nxb2 {[%clk 0:00:40]}  Bxf1 {[%clk 0:00:57]} 24. Kxf1 {[%clk 0:00:40]}  Rd2 {[%clk 0:00:57]} 25. Rb1 {[%clk 0:00:39]}  Rad8 {[%clk 0:00:55]} 26. Nc4 {[%clk 0:00:38]}  Rc2 {[%clk 0:00:53]} 27. Na3 {[%clk 0:00:28]}  Rxa2 {[%clk 0:00:52]} 28. Nc4 {[%clk 0:00:15]}  Rc2 {[%clk 0:00:51]} 29. Na3 {[%clk 0:00:13]}  Rc3 {[%clk 0:00:52]} 30. Ra1 {[%clk 0:00:11]}  g6 {[%clk 0:00:48]} 31. g3 {[%clk 0:00:10]}  Rdd3 {[%clk 0:00:48]} 32. Nb1 {[%clk 0:00:09]}  Rd1+ {[%clk 0:00:48]} 33. Ke2 {[%clk 0:00:09]}  Rcc1 {[%clk 0:00:48]} 34. Rxa7 {[%clk 0:00:09]}  Rxb1 {[%clk 0:00:49]} 35. Rxb7 {[%clk 0:00:10]}  c5 {[%clk 0:00:44]} 36. b5 {[%clk 0:00:09]}  c4 {[%clk 0:00:43]} 37. Rb8+ {[%clk 0:00:09]}  Kg7 {[%clk 0:00:43]} 38. b6 {[%clk 0:00:09]}  c3 {[%clk 0:00:43]} 39. Rc8 {[%clk 0:00:10]}  Rd2+ {[%clk 0:00:41]} 40. Kf3 {[%clk 0:00:09]}  c2 {[%clk 0:00:38]} 41. b7 {[%clk 0:00:07]}  Rxb7 {[%clk 0:00:38]} 42. h4 {[%clk 0:00:06]}  Rb1 {[%clk 0:00:38]} 43. h5 {[%clk 0:00:06]}  gxh5 {[%clk 0:00:39]} 44. Kf4 {[%clk 0:00:06]}  c1=Q {[%clk 0:00:39]} 45. Rxc1 {[%clk 0:00:06]}  Rxc1 {[%clk 0:00:40]} 46. Kg5 {[%clk 0:00:07]}  Rxf2 {[%clk 0:00:39]} 47. e4 {[%clk 0:00:06]}  Rc5+ {[%clk 0:00:39]} 48. e5 {[%clk 0:00:04]}  Rxe5+ {[%clk 0:00:39]} 0-1


[Site "https://www.chess.com"]

[Event "Titled Tuesday Blitz April 12 Early 2022"]
[White "Gharibyan, Mamikon"]
[Black "Lorparizangeneh, Shahin"]
[WhiteFideId "13308300"]
[BlackFideId "12521604"]
[WhiteElo "2254"]
[BlackElo "2525"]
[Result "0-1"]
[Round "05"]
[TimeControl "180+1"]
[Date "2022.04.12"]
[WhiteClock "0:00:01"]
[BlackClock "0:00:19"]

1. c4 {[%clk 0:02:56]}  e6 {[%clk 0:02:58]} 2. Nc3 {[%clk 0:02:54]}  d5 {[%clk 0:02:58]} 3. d4 {[%clk 0:02:54]}  Bb4 {[%clk 0:02:58]} 4. Nf3 {[%clk 0:02:51]}  Nf6 {[%clk 0:02:58]} 5. cxd5 {[%clk 0:02:52]}  exd5 {[%clk 0:02:58]} 6. Bf4 {[%clk 0:02:52]}  O-O {[%clk 0:02:57]} 7. e3 {[%clk 0:02:47]}  Bf5 {[%clk 0:02:51]} 8. Nh4 {[%clk 0:02:37]}  Be4 {[%clk 0:02:26]} 9. a3 {[%clk 0:02:16]}  Bxc3+ {[%clk 0:02:24]} 10. bxc3 {[%clk 0:02:17]}  h6 {[%clk 0:02:22]} 11. Bg3 {[%clk 0:02:07]}  c5 {[%clk 0:02:20]} 12. Be2 {[%clk 0:01:43]}  Qa5 {[%clk 0:02:16]} 13. O-O {[%clk 0:01:42]}  Qxc3 {[%clk 0:02:16]} 14. Bd6 {[%clk 0:01:15]}  Re8 {[%clk 0:01:33]} 15. Bxc5 {[%clk 0:01:06]}  Nc6 {[%clk 0:01:29]} 16. Nf3 {[%clk 0:00:56]}  Nd7 {[%clk 0:01:26]} 17. Bd6 {[%clk 0:00:52]}  Re6 {[%clk 0:01:15]} 18. Bg3 {[%clk 0:00:48]}  Nb6 {[%clk 0:00:59]} 19. Qe1 {[%clk 0:00:46]}  Qb2 {[%clk 0:00:54]} 20. Nd2 {[%clk 0:00:36]}  Bg6 {[%clk 0:00:51]} 21. Nf3 {[%clk 0:00:17]}  Na4 {[%clk 0:00:40]} 22. Ne5 {[%clk 0:00:15]}  Nxe5 {[%clk 0:00:36]} 23. Bxe5 {[%clk 0:00:15]}  Nc3 {[%clk 0:00:35]} 24. Bg4 {[%clk 0:00:15]}  Rc6 {[%clk 0:00:34]} 25. Kh1 {[%clk 0:00:15]}  Bd3 {[%clk 0:00:30]} 26. Rg1 {[%clk 0:00:11]}  Ne4 {[%clk 0:00:31]} 27. Bg3 {[%clk 0:00:11]}  Rc2 {[%clk 0:00:31]} 28. Rb1 {[%clk 0:00:08]}  Qxa3 {[%clk 0:00:28]} 29. Rxb7 {[%clk 0:00:07]}  a5 {[%clk 0:00:22]} 30. Bh5 {[%clk 0:00:07]}  Rf8 {[%clk 0:00:21]} 31. f3 {[%clk 0:00:07]}  Nf6 {[%clk 0:00:21]} 32. Bg4 {[%clk 0:00:01]}  Nxg4 {[%clk 0:00:22]} 33. fxg4 {[%clk 0:00:02]}  Be4 {[%clk 0:00:22]} 34. Be5 {[%clk 0:00:02]}  Qa2 {[%clk 0:00:20]} 35. Qg3 {[%clk 0:00:02]}  Rxg2 {[%clk 0:00:18]} 36. Rxg2 {[%clk 0:00:01]}  Qa1+ {[%clk 0:00:19]} 0-1


[Site "https://www.chess.com"]

[Event "Titled Tuesday Blitz April 12 Early 2022"]
[White "GodDMuhammad"]
[Black "Dushyant Sharma"]
[BlackFideId "25065130"]
[WhiteElo "2298"]
[BlackElo "2105"]
[Result "1-0"]
[Round "05"]
[TimeControl "180+1"]
[Date "2022.04.13"]
[WhiteClock "0:00:43"]
[BlackClock "0:00:02"]

1. f4 {[%clk 0:03:00]}  d5 {[%clk 0:02:18]} 2. Nf3 {[%clk 0:02:59]}  e6 {[%clk 0:02:17]} 3. g3 {[%clk 0:02:59]}  f5 {[%clk 0:02:17]} 4. d3 {[%clk 0:02:58]}  Nf6 {[%clk 0:02:18]} 5. c3 {[%clk 0:02:56]}  Be7 {[%clk 0:02:18]} 6. Nbd2 {[%clk 0:02:42]}  O-O {[%clk 0:02:19]} 7. Qc2 {[%clk 0:02:22]}  c5 {[%clk 0:02:19]} 8. e4 {[%clk 0:02:05]}  Nc6 {[%clk 0:01:56]} 9. Bg2 {[%clk 0:02:02]}  Ng4 {[%clk 0:01:47]} 10. Nf1 {[%clk 0:02:01]}  dxe4 {[%clk 0:01:36]} 11. dxe4 {[%clk 0:01:59]}  e5 {[%clk 0:01:34]} 12. h3 {[%clk 0:01:54]}  Nh6 {[%clk 0:01:24]} 13. fxe5 {[%clk 0:01:54]}  fxe4 {[%clk 0:01:17]} 14. Qxe4 {[%clk 0:01:55]}  Bf5 {[%clk 0:01:14]} 15. Qc4+ {[%clk 0:01:53]}  Kh8 {[%clk 0:01:14]} 16. Bxh6 {[%clk 0:01:53]}  gxh6 {[%clk 0:01:15]} 17. Rd1 {[%clk 0:01:51]}  Qe8 {[%clk 0:01:01]} 18. Ne3 {[%clk 0:01:48]}  Qg6 {[%clk 0:01:01]} 19. Nxf5 {[%clk 0:01:45]}  Rxf5 {[%clk 0:00:57]} 20. g4 {[%clk 0:01:44]}  Rxf3 {[%clk 0:00:52]} 21. Bxf3 {[%clk 0:01:44]}  Nxe5 {[%clk 0:00:51]} 22. Qe4 {[%clk 0:01:38]}  Nxf3+ {[%clk 0:00:40]} 23. Qxf3 {[%clk 0:01:37]}  Bh4+ {[%clk 0:00:41]} 24. Kf1 {[%clk 0:01:30]}  Qc2 {[%clk 0:00:27]} 25. Kg1 {[%clk 0:01:26]}  Re8 {[%clk 0:00:17]} 26. Rh2 {[%clk 0:01:22]}  Qa4 {[%clk 0:00:14]} 27. b3 {[%clk 0:01:19]}  Qa6 {[%clk 0:00:12]} 28. Rhd2 {[%clk 0:01:16]}  h5 {[%clk 0:00:09]} 29. c4 {[%clk 0:01:11]}  hxg4 {[%clk 0:00:08]} 30. hxg4 {[%clk 0:01:11]}  Qg6 {[%clk 0:00:09]} 31. Rd6 {[%clk 0:01:08]}  Qg7 {[%clk 0:00:08]} 32. Rd7 {[%clk 0:01:06]}  Qg6 {[%clk 0:00:08]} 33. Qf5 {[%clk 0:00:56]}  Qg8 {[%clk 0:00:04]} 34. Kg2 {[%clk 0:00:43]}  Rf8 {[%clk 0:00:04]} 35. Qe5+ {[%clk 0:00:41]}  Bf6 {[%clk 0:00:04]} 36. Qe4 {[%clk 0:00:41]}  Re8 {[%clk 0:00:02]} 37. Rxh7+ {[%clk 0:00:41]}  Qxh7 {[%clk 0:00:02]} 38. Qxe8+ {[%clk 0:00:42]}  Kg7 {[%clk 0:00:02]} 39. Rd7+ {[%clk 0:00:43]} 1-0


[Site "https://www.chess.com"]

[Event "Titled Tuesday Blitz April 12 Early 2022"]
[White "Gracia Alvarez, Gerardo Antonio"]
[Black "Maltsevskaya, Aleksandra"]
[WhiteFideId "5109124"]
[BlackFideId "24174041"]
[WhiteElo "2139"]
[BlackElo "2235"]
[Result "1/2-1/2"]
[Round "05"]
[TimeControl "180+1"]
[Date "2022.04.13"]
[WhiteClock "0:00:04"]
[BlackClock "0:00:06"]

1. e4 {[%clk 0:03:00]}  c6 {[%clk 0:02:51]} 2. c4 {[%clk 0:03:00]}  d5 {[%clk 0:02:52]} 3. cxd5 {[%clk 0:03:01]}  cxd5 {[%clk 0:02:52]} 4. exd5 {[%clk 0:03:01]}  g6 {[%clk 0:02:52]} 5. Qa4+ {[%clk 0:02:57]}  Nd7 {[%clk 0:02:51]} 6. Nc3 {[%clk 0:02:57]}  Bg7 {[%clk 0:02:50]} 7. Bc4 {[%clk 0:02:56]}  Nf6 {[%clk 0:02:50]} 8. d3 {[%clk 0:02:55]}  O-O {[%clk 0:02:51]} 9. Nf3 {[%clk 0:02:55]}  a6 {[%clk 0:02:35]} 10. Qa3 {[%clk 0:02:55]}  Nb6 {[%clk 0:01:48]} 11. Qb3 {[%clk 0:02:55]}  Bg4 {[%clk 0:01:48]} 12. Ne5 {[%clk 0:02:55]}  Qd6 {[%clk 0:01:39]} 13. O-O {[%clk 0:02:53]}  Bh3 {[%clk 0:01:16]} 14. gxh3 {[%clk 0:02:25]}  Nh5 {[%clk 0:01:08]} 15. f4 {[%clk 0:02:03]}  Nd7 {[%clk 0:00:59]} 16. Nxd7 {[%clk 0:01:55]}  Qxd7 {[%clk 0:00:59]} 17. Qd1 {[%clk 0:01:13]}  Qxh3 {[%clk 0:00:59]} 18. d4 {[%clk 0:00:57]}  Rac8 {[%clk 0:00:43]} 19. Be2 {[%clk 0:00:50]}  Nf6 {[%clk 0:00:24]} 20. Bf3 {[%clk 0:00:44]}  Rfd8 {[%clk 0:00:16]} 21. Be3 {[%clk 0:00:40]}  b5 {[%clk 0:00:12]} 22. a3 {[%clk 0:00:41]}  a5 {[%clk 0:00:11]} 23. Qd2 {[%clk 0:00:28]}  b4 {[%clk 0:00:10]} 24. axb4 {[%clk 0:00:28]}  axb4 {[%clk 0:00:11]} 25. Ne4 {[%clk 0:00:26]}  Nxd5 {[%clk 0:00:12]} 26. Ng5 {[%clk 0:00:23]}  Qf5 {[%clk 0:00:08]} 27. Bxd5 {[%clk 0:00:16]}  Rxd5 {[%clk 0:00:09]} 28. Rac1 {[%clk 0:00:13]}  Rcd8 {[%clk 0:00:09]} 29. Qg2 {[%clk 0:00:10]}  Bxd4 {[%clk 0:00:08]} 30. Bxd4 {[%clk 0:00:10]}  Rxd4 {[%clk 0:00:08]} 31. Rfe1 {[%clk 0:00:06]}  Rd2 {[%clk 0:00:09]} 32. Re2 {[%clk 0:00:06]}  Qxf4 {[%clk 0:00:09]} 33. Rf1 {[%clk 0:00:05]}  Rxe2 {[%clk 0:00:08]} 34. Rxf4 {[%clk 0:00:03]}  Rxg2+ {[%clk 0:00:07]} 35. Kxg2 {[%clk 0:00:04]}  e5 {[%clk 0:00:07]} 36. Rxb4 {[%clk 0:00:04]}  h6 {[%clk 0:00:07]} 37. Ne4 {[%clk 0:00:03]}  f5 {[%clk 0:00:08]} 38. Nc5 {[%clk 0:00:03]}  Kf7 {[%clk 0:00:07]} 39. Rb7+ {[%clk 0:00:02]}  Kf6 {[%clk 0:00:08]} 40. Rb6+ {[%clk 0:00:03]}  Kf7 {[%clk 0:00:07]} 41. Rb7+ {[%clk 0:00:03]}  Kf6 {[%clk 0:00:07]} 42. Rb6+ {[%clk 0:00:04]}  Kf7 {[%clk 0:00:06]} 43. Rb7+ {[%clk 0:00:04]} 1/2-1/2


[Site "https://www.chess.com"]

[Event "Titled Tuesday Blitz April 12 Early 2022"]
[White "Grischuk, Alexander"]
[Black "Timofeev, Artyom"]
[WhiteFideId "4126025"]
[BlackFideId "4140419"]
[WhiteElo "2762"]
[BlackElo "2594"]
[Result "1-0"]
[Round "05"]
[TimeControl "180+1"]
[Date "2022.04.12"]
[WhiteClock "0:00:09"]
[BlackClock "0:00:14"]

1. d4 {[%clk 0:03:00]}  Nf6 {[%clk 0:02:58]} 2. c4 {[%clk 0:03:00]}  g6 {[%clk 0:02:58]} 3. Bg5 {[%clk 0:03:00]}  Bg7 {[%clk 0:02:58]} 4. Nc3 {[%clk 0:03:00]}  h6 {[%clk 0:02:53]} 5. Bh4 {[%clk 0:02:51]}  c5 {[%clk 0:02:44]} 6. d5 {[%clk 0:02:51]}  g5 {[%clk 0:02:34]} 7. Bg3 {[%clk 0:02:51]}  Nh5 {[%clk 0:02:34]} 8. e3 {[%clk 0:02:48]}  Nxg3 {[%clk 0:02:34]} 9. hxg3 {[%clk 0:02:49]}  d6 {[%clk 0:02:33]} 10. Qc2 {[%clk 0:02:38]}  Nd7 {[%clk 0:02:28]} 11. Be2 {[%clk 0:02:20]}  Nf6 {[%clk 0:02:25]} 12. Nf3 {[%clk 0:02:02]}  Bd7 {[%clk 0:02:23]} 13. Nd2 {[%clk 0:01:57]}  Qa5 {[%clk 0:02:20]} 14. Bd3 {[%clk 0:01:24]}  a6 {[%clk 0:02:03]} 15. Bf5 {[%clk 0:01:09]}  b5 {[%clk 0:02:02]} 16. O-O {[%clk 0:01:00]}  b4 {[%clk 0:01:53]} 17. Ne2 {[%clk 0:00:51]}  Qc7 {[%clk 0:01:33]} 18. a3 {[%clk 0:00:44]}  O-O {[%clk 0:01:28]} 19. Bxd7 {[%clk 0:00:38]}  Nxd7 {[%clk 0:01:25]} 20. axb4 {[%clk 0:00:38]}  cxb4 {[%clk 0:01:25]} 21. Nd4 {[%clk 0:00:38]}  a5 {[%clk 0:01:14]} 22. Nf5 {[%clk 0:00:33]}  Nc5 {[%clk 0:01:13]} 23. Nxg7 {[%clk 0:00:28]}  Kxg7 {[%clk 0:01:13]} 24. Ne4 {[%clk 0:00:28]}  f5 {[%clk 0:01:07]} 25. Nxc5 {[%clk 0:00:27]}  Qxc5 {[%clk 0:01:07]} 26. b3 {[%clk 0:00:26]}  Ra7 {[%clk 0:00:53]} 27. Ra4 {[%clk 0:00:17]}  Qc7 {[%clk 0:00:39]} 28. Qb2+ {[%clk 0:00:15]}  Kf7 {[%clk 0:00:37]} 29. Qd4 {[%clk 0:00:15]}  Qc5 {[%clk 0:00:37]} 30. Qd3 {[%clk 0:00:13]}  Kg7 {[%clk 0:00:36]} 31. Rfa1 {[%clk 0:00:12]}  Rf7 {[%clk 0:00:35]} 32. Qd4+ {[%clk 0:00:10]}  Qxd4 {[%clk 0:00:32]} 33. exd4 {[%clk 0:00:11]}  f4 {[%clk 0:00:20]} 34. Rxa5 {[%clk 0:00:11]}  Rxa5 {[%clk 0:00:19]} 35. Rxa5 {[%clk 0:00:12]}  fxg3 {[%clk 0:00:19]} 36. fxg3 {[%clk 0:00:13]}  Rf8 {[%clk 0:00:15]} 37. Rb5 {[%clk 0:00:12]}  Ra8 {[%clk 0:00:15]} 38. Rxb4 {[%clk 0:00:12]}  Ra2 {[%clk 0:00:15]} 39. c5 {[%clk 0:00:09]}  Rc2 {[%clk 0:00:15]} 40. c6 {[%clk 0:00:09]}  Kf6 {[%clk 0:00:14]} 41. Rc4 {[%clk 0:00:09]} 1-0


[Site "https://www.chess.com"]